[Event "Titled Tuesday Blitz July 25 Early 2023"]
[White "Goffredo_Fofi"]
[Black "Vujacic, Igor"]
[BlackFideId "932620"]
[WhiteElo "2518"]
[BlackElo "2329"]
[Result "0-1"]
[Round "5"]
[TimeControl "180+2"]
[Date "2023.07.25"]
[WhiteClock "0:00:02"]
[BlackClock "0:00:05"]
[Board "175"]

1. d4 {[%clk 0:03:00]}  d5 {[%clk 0:02:59]} 2. Nf3 {[%clk 0:03:00]}  e6 {[%clk 0:02:59]} 3. Bf4 {[%clk 0:03:00]}  c5 {[%clk 0:02:54]} 4. e3 {[%clk 0:03:00]}  Nc6 {[%clk 0:02:54]} 5. c3 {[%clk 0:03:00]}  Bd6 {[%clk 0:02:55]} 6. Bg3 {[%clk 0:02:57]}  Nge7 {[%clk 0:02:55]} 7. Nbd2 {[%clk 0:02:56]}  O-O {[%clk 0:02:53]} 8. dxc5 {[%clk 0:02:47]}  Bxc5 {[%clk 0:02:52]} 9. e4 {[%clk 0:02:47]}  Bb6 {[%clk 0:02:20]} 10. Bd3 {[%clk 0:02:17]}  dxe4 {[%clk 0:01:47]} 11. Nxe4 {[%clk 0:02:18]}  Ng6 {[%clk 0:01:29]} 12. Nfg5 {[%clk 0:01:18]}  h6 {[%clk 0:01:05]} 13. h4 {[%clk 0:01:17]}  Nge5 {[%clk 0:00:55]} 14. Bc2 {[%clk 0:00:27]}  Qxd1+ {[%clk 0:00:41]} 15. Rxd1 {[%clk 0:00:28]}  hxg5 {[%clk 0:00:37]} 16. hxg5 {[%clk 0:00:29]}  f5 {[%clk 0:00:37]} 17. Bxe5 {[%clk 0:00:20]}  Nxe5 {[%clk 0:00:36]} 18. Nd6 {[%clk 0:00:20]}  g6 {[%clk 0:00:26]} 19. Bb3 {[%clk 0:00:20]}  Kg7 {[%clk 0:00:26]} 20. Ke2 {[%clk 0:00:16]}  Bd7 {[%clk 0:00:17]} 21. f4 {[%clk 0:00:15]}  Ng4 {[%clk 0:00:17]} 22. Nxb7 {[%clk 0:00:13]}  Bc6 {[%clk 0:00:15]} 23. Nd6 {[%clk 0:00:07]}  Nf2 {[%clk 0:00:10]} 24. Bxe6 {[%clk 0:00:07]}  Rae8 {[%clk 0:00:08]} 25. Nxe8+ {[%clk 0:00:06]}  Rxe8 {[%clk 0:00:09]} 26. Kf1 {[%clk 0:00:04]}  Nxd1 {[%clk 0:00:08]} 27. Bb3 {[%clk 0:00:03]}  Ne3+ {[%clk 0:00:08]} 28. Kg1 {[%clk 0:00:03]}  Bxg2 {[%clk 0:00:05]} 29. Kh2 {[%clk 0:00:02]}  Bxh1 {[%clk 0:00:05]} 0-1


[Site "https://www.chess.com"]

[Event "Titled Tuesday Blitz July 25 Early 2023"]
[White "Buscar, Michael"]
[Black "Gulamali, Kazim"]
[WhiteFideId "2603616"]
[BlackFideId "2024764"]
[WhiteElo "2326"]
[BlackElo "2516"]
[Result "1-0"]
[Round "5"]
[TimeControl "180+2"]
[Date "2023.07.25"]
[WhiteClock "0:00:34"]
[BlackClock "0:00:00"]
[Board "176"]

1. d4 {[%clk 0:02:59]}  Nf6 {[%clk 0:02:59]} 2. c4 {[%clk 0:02:58]}  e6 {[%clk 0:02:59]} 3. Nc3 {[%clk 0:02:58]}  d5 {[%clk 0:02:59]} 4. Nf3 {[%clk 0:02:58]}  a6 {[%clk 0:02:59]} 5. cxd5 {[%clk 0:02:54]}  exd5 {[%clk 0:02:59]} 6. Bg5 {[%clk 0:02:53]}  Be6 {[%clk 0:03:00]} 7. e3 {[%clk 0:02:52]}  Nbd7 {[%clk 0:02:57]} 8. Bd3 {[%clk 0:02:51]}  Bd6 {[%clk 0:02:57]} 9. O-O {[%clk 0:02:51]}  h6 {[%clk 0:02:58]} 10. Bh4 {[%clk 0:02:50]}  O-O {[%clk 0:02:58]} 11. Rc1 {[%clk 0:02:42]}  c6 {[%clk 0:02:58]} 12. Bb1 {[%clk 0:02:42]}  Re8 {[%clk 0:02:41]} 13. Qd3 {[%clk 0:02:42]}  Be7 {[%clk 0:02:40]} 14. Ne5 {[%clk 0:02:31]}  Nf8 {[%clk 0:02:36]} 15. Ne2 {[%clk 0:02:21]}  Ne4 {[%clk 0:02:34]} 16. Bxe7 {[%clk 0:02:18]}  Qxe7 {[%clk 0:02:35]} 17. Nf4 {[%clk 0:02:18]}  Bf5 {[%clk 0:02:28]} 18. Qe2 {[%clk 0:01:53]}  f6 {[%clk 0:02:26]} 19. Ned3 {[%clk 0:01:49]}  Nd6 {[%clk 0:02:23]} 20. Qh5 {[%clk 0:01:42]}  g5 {[%clk 0:02:00]} 21. Ne2 {[%clk 0:01:33]}  Kg7 {[%clk 0:01:48]} 22. Ng3 {[%clk 0:01:31]}  Bg6 {[%clk 0:01:48]} 23. Qf3 {[%clk 0:01:25]}  f5 {[%clk 0:01:42]} 24. Ne5 {[%clk 0:01:20]}  Qf6 {[%clk 0:01:33]} 25. Nh5+ {[%clk 0:01:11]}  Bxh5 {[%clk 0:01:16]} 26. Qxh5 {[%clk 0:01:12]}  Rxe5 {[%clk 0:00:41]} 27. dxe5 {[%clk 0:01:10]}  Qxe5 {[%clk 0:00:42]} 28. b3 {[%clk 0:01:05]}  Re8 {[%clk 0:00:42]} 29. Rcd1 {[%clk 0:00:57]}  Ng6 {[%clk 0:00:41]} 30. Rd4 {[%clk 0:00:50]}  Nb5 {[%clk 0:00:34]} 31. Rd2 {[%clk 0:00:45]}  Nc3 {[%clk 0:00:34]} 32. Qf3 {[%clk 0:00:39]}  Nh4 {[%clk 0:00:00]} 33. Qg3 {[%clk 0:00:34]} 1-0


[Site "https://www.chess.com"]

[Event "Titled Tuesday Blitz July 25 Early 2023"]
[White "Schlecht, Daniel, Dr."]
[Black "Prydun, Andriy"]
[WhiteFideId "4623959"]
[BlackFideId "14145898"]
[WhiteElo "2480"]
[BlackElo "2323"]
[Result "1-0"]
[Round "5"]
[TimeControl "180+2"]
[Date "2023.07.25"]
[WhiteClock "0:00:14"]
[BlackClock "0:00:00"]
[Board "177"]

1. d4 {[%clk 0:03:00]}  Nf6 {[%clk 0:02:59]} 2. Nf3 {[%clk 0:03:01]}  e6 {[%clk 0:02:58]} 3. Bf4 {[%clk 0:03:00]}  c5 {[%clk 0:02:56]} 4. e3 {[%clk 0:02:58]}  Nd5 {[%clk 0:02:50]} 5. Bg3 {[%clk 0:02:56]}  Qb6 {[%clk 0:02:49]} 6. Qc1 {[%clk 0:02:55]}  cxd4 {[%clk 0:02:43]} 7. exd4 {[%clk 0:02:55]}  Nc6 {[%clk 0:02:44]} 8. c3 {[%clk 0:02:52]}  d6 {[%clk 0:02:33]} 9. Bd3 {[%clk 0:02:51]}  Bd7 {[%clk 0:02:33]} 10. O-O {[%clk 0:02:51]}  O-O-O {[%clk 0:02:33]} 11. a4 {[%clk 0:02:36]}  Be7 {[%clk 0:02:21]} 12. b4 {[%clk 0:02:34]}  f5 {[%clk 0:01:35]} 13. a5 {[%clk 0:02:22]}  Qc7 {[%clk 0:01:35]} 14. Na3 {[%clk 0:02:17]}  g5 {[%clk 0:01:31]} 15. h4 {[%clk 0:01:56]}  f4 {[%clk 0:01:30]} 16. Bh2 {[%clk 0:01:56]}  g4 {[%clk 0:01:31]} 17. Ne1 {[%clk 0:01:54]}  Bxh4 {[%clk 0:01:30]} 18. Bxf4 {[%clk 0:01:54]}  Rhg8 {[%clk 0:01:23]} 19. Nb5 {[%clk 0:01:51]}  Nxf4 {[%clk 0:01:21]} 20. Nxc7 {[%clk 0:01:40]}  Bg5 {[%clk 0:01:20]} 21. Qc2 {[%clk 0:01:29]}  Kxc7 {[%clk 0:01:20]} 22. b5 {[%clk 0:01:28]}  Ne7 {[%clk 0:01:20]} 23. b6+ {[%clk 0:01:28]}  Kb8 {[%clk 0:01:19]} 24. bxa7+ {[%clk 0:01:26]}  Ka8 {[%clk 0:01:19]} 25. a6 {[%clk 0:01:26]}  b6 {[%clk 0:01:19]} 26. Qb2 {[%clk 0:01:09]}  Bc6 {[%clk 0:00:41]} 27. Qxb6 {[%clk 0:01:01]}  Nh3+ {[%clk 0:00:38]} 28. Kh2 {[%clk 0:00:55]}  Nxf2 {[%clk 0:00:30]} 29. Bb5 {[%clk 0:00:24]}  g3+ {[%clk 0:00:24]} 30. Kg1 {[%clk 0:00:20]}  Be4 {[%clk 0:00:11]} 31. Nf3 {[%clk 0:00:18]}  Be3 {[%clk 0:00:10]} 32. Rfe1 {[%clk 0:00:17]}  Nf5 {[%clk 0:00:00]} 33. Bc6+ {[%clk 0:00:14]} 1-0


[Site "https://www.chess.com"]

[Event "Titled Tuesday Blitz July 25 Early 2023"]
[White "Herzog2012"]
[Black "Romero Arzuaga, Yudel"]
[BlackFideId "3521010"]
[WhiteElo "2447"]
[BlackElo "2285"]
[Result "0-1"]
[Round "5"]
[TimeControl "180+2"]
[Date "2023.07.25"]
[WhiteClock "0:00:01"]
[BlackClock "0:00:32"]
[Board "185"]

1. e4 {[%clk 0:02:57]}  d5 {[%clk 0:02:59]} 2. exd5 {[%clk 0:02:55]}  Qxd5 {[%clk 0:03:00]} 3. Nc3 {[%clk 0:02:54]}  Qd8 {[%clk 0:03:01]} 4. d4 {[%clk 0:02:54]}  c6 {[%clk 0:03:01]} 5. Nf3 {[%clk 0:02:54]}  Bg4 {[%clk 0:03:01]} 6. h3 {[%clk 0:02:50]}  Bxf3 {[%clk 0:03:01]} 7. Qxf3 {[%clk 0:02:50]}  e6 {[%clk 0:03:02]} 8. Bf4 {[%clk 0:02:47]}  Nf6 {[%clk 0:03:02]} 9. O-O-O {[%clk 0:02:42]}  Bb4 {[%clk 0:03:02]} 10. Ne4 {[%clk 0:02:41]}  Nxe4 {[%clk 0:03:01]} 11. Qxe4 {[%clk 0:02:42]}  Bd6 {[%clk 0:03:01]} 12. Be3 {[%clk 0:02:33]}  Nd7 {[%clk 0:03:00]} 13. g4 {[%clk 0:02:33]}  h6 {[%clk 0:02:54]} 14. c4 {[%clk 0:02:27]}  Qc7 {[%clk 0:02:39]} 15. Kb1 {[%clk 0:02:16]}  Qa5 {[%clk 0:02:29]} 16. Bg2 {[%clk 0:02:03]}  Nf6 {[%clk 0:02:25]} 17. Qc2 {[%clk 0:02:02]}  O-O-O {[%clk 0:02:22]} 18. d5 {[%clk 0:01:51]}  exd5 {[%clk 0:02:14]} 19. cxd5 {[%clk 0:01:52]}  c5 {[%clk 0:02:15]} 20. Bd2 {[%clk 0:01:46]}  Qc7 {[%clk 0:02:12]} 21. Rhe1 {[%clk 0:01:42]}  Rhe8 {[%clk 0:02:10]} 22. g5 {[%clk 0:01:24]}  hxg5 {[%clk 0:02:05]} 23. Bxg5 {[%clk 0:01:25]}  Kb8 {[%clk 0:02:05]} 24. Qf5 {[%clk 0:01:22]}  Rxe1 {[%clk 0:01:40]} 25. Rxe1 {[%clk 0:01:20]}  Qa5 {[%clk 0:01:34]} 26. Rd1 {[%clk 0:01:15]}  Qa4 {[%clk 0:01:27]} 27. b3 {[%clk 0:01:10]}  Qb5 {[%clk 0:01:21]} 28. Bf1 {[%clk 0:01:07]}  Qb6 {[%clk 0:01:19]} 29. Bxf6 {[%clk 0:00:50]}  gxf6 {[%clk 0:01:20]} 30. Qxf6 {[%clk 0:00:51]}  Qc7 {[%clk 0:01:18]} 31. Be2 {[%clk 0:00:34]}  Be5 {[%clk 0:01:17]} 32. Qf5 {[%clk 0:00:32]}  f6 {[%clk 0:01:16]} 33. h4 {[%clk 0:00:31]}  Qa5 {[%clk 0:01:12]} 34. Qc2 {[%clk 0:00:27]}  Qb4 {[%clk 0:01:09]} 35. Qc4 {[%clk 0:00:22]}  Qa3 {[%clk 0:01:06]} 36. Qc2 {[%clk 0:00:20]}  Qb4 {[%clk 0:01:05]} 37. Qc4 {[%clk 0:00:17]}  Qa3 {[%clk 0:00:58]} 38. Qc2 {[%clk 0:00:18]}  Qa5 {[%clk 0:00:58]} 39. h5 {[%clk 0:00:16]}  Qc7 {[%clk 0:00:56]} 40. h6 {[%clk 0:00:15]}  Rh8 {[%clk 0:00:55]} 41. Rh1 {[%clk 0:00:14]}  Bf4 {[%clk 0:00:50]} 42. h7 {[%clk 0:00:13]}  Be5 {[%clk 0:00:46]} 43. Qg6 {[%clk 0:00:12]}  Qd8 {[%clk 0:00:34]} 44. Bc4 {[%clk 0:00:06]}  a6 {[%clk 0:00:33]} 45. Rg1 {[%clk 0:00:05]}  Ka7 {[%clk 0:00:33]} 46. Qg8 {[%clk 0:00:04]}  Qa5 {[%clk 0:00:32]} 47. Qxh8 {[%clk 0:00:02]}  Qc3 {[%clk 0:00:32]} 48. Qxf6 {[%clk 0:00:01]}  Qb2# {[%clk 0:00:32]} 0-1


[Site "https://www.chess.com"]

[Event "Titled Tuesday Blitz July 25 Early 2023"]
[White "Ljukin, Sergei"]
[Black "Barwinska, Ewa"]
[WhiteFideId "14102200"]
[BlackFideId "21833761"]
[WhiteElo "2446"]
[BlackElo "2280"]
[Result "1-0"]
[Round "5"]
[TimeControl "180+2"]
[Date "2023.07.25"]
[WhiteClock "0:00:30"]
[BlackClock "0:00:00"]
[Board "186"]

1. e4 {[%clk 0:02:45]}  c5 {[%clk 0:02:59]} 2. Nf3 {[%clk 0:02:42]}  d6 {[%clk 0:02:56]} 3. d4 {[%clk 0:02:42]}  cxd4 {[%clk 0:02:57]} 4. Nxd4 {[%clk 0:02:43]}  Nf6 {[%clk 0:02:57]} 5. Nc3 {[%clk 0:02:43]}  a6 {[%clk 0:02:56]} 6. Bg5 {[%clk 0:02:44]}  e6 {[%clk 0:02:53]} 7. f4 {[%clk 0:02:44]}  h6 {[%clk 0:02:51]} 8. Bh4 {[%clk 0:02:42]}  Qb6 {[%clk 0:02:50]} 9. a3 {[%clk 0:02:41]}  Nbd7 {[%clk 0:02:42]} 10. Bf2 {[%clk 0:02:40]}  Qc7 {[%clk 0:02:41]} 11. Qe2 {[%clk 0:02:40]}  b5 {[%clk 0:02:38]} 12. O-O-O {[%clk 0:02:38]}  Bb7 {[%clk 0:02:39]} 13. g4 {[%clk 0:02:29]}  Be7 {[%clk 0:02:30]} 14. h4 {[%clk 0:02:18]}  Nb6 {[%clk 0:02:05]} 15. Rg1 {[%clk 0:02:13]}  Nc4 {[%clk 0:02:03]} 16. g5 {[%clk 0:02:01]}  hxg5 {[%clk 0:02:00]} 17. hxg5 {[%clk 0:02:01]}  Nd7 {[%clk 0:01:54]} 18. Ndxb5 {[%clk 0:01:55]}  axb5 {[%clk 0:01:47]} 19. Nxb5 {[%clk 0:01:55]}  Qa5 {[%clk 0:01:23]} 20. Qxc4 {[%clk 0:01:54]}  Rc8 {[%clk 0:01:23]} 21. Qe2 {[%clk 0:01:31]}  Rc6 {[%clk 0:00:14]} 22. g6 {[%clk 0:01:19]}  f6 {[%clk 0:00:12]} 23. Nd4 {[%clk 0:01:15]}  Rc8 {[%clk 0:00:04]} 24. Nxe6 {[%clk 0:01:13]}  Rg8 {[%clk 0:00:03]} 25. Qb5 {[%clk 0:00:36]}  Qxb5 {[%clk 0:00:03]} 26. Bxb5 {[%clk 0:00:35]}  Bxe4 {[%clk 0:00:03]} 27. Bd3 {[%clk 0:00:36]}  Bd5 {[%clk 0:00:03]} 28. Rge1 {[%clk 0:00:35]}  Bxe6 {[%clk 0:00:02]} 29. Rxe6 {[%clk 0:00:35]}  Nc5 {[%clk 0:00:02]} 30. Bxc5 {[%clk 0:00:34]}  Rxc5 {[%clk 0:00:03]} 31. Rde1 {[%clk 0:00:33]}  Rc7 {[%clk 0:00:03]} 32. Rxd6 {[%clk 0:00:33]}  Kf8 {[%clk 0:00:00]} 33. Ra6 {[%clk 0:00:30]} 1-0


[Site "https://www.chess.com"]

[Event "Titled Tuesday Blitz July 25 Early 2023"]
[White "Fernandez Bustamante, Leancy B."]
[Black "Molenda, Marcin"]
[WhiteFideId "3523870"]
[BlackFideId "1173065"]
[WhiteElo "2278"]
[BlackElo "2444"]
[Result "0-1"]
[Round "5"]
[TimeControl "180+2"]
[Date "2023.07.25"]
[WhiteClock "0:00:04"]
[BlackClock "0:00:12"]
[Board "187"]

1. e4 {[%clk 0:03:00]}  c5 {[%clk 0:02:54]} 2. Nf3 {[%clk 0:02:58]}  e6 {[%clk 0:02:53]} 3. c3 {[%clk 0:02:56]}  Nf6 {[%clk 0:02:51]} 4. e5 {[%clk 0:02:54]}  Nd5 {[%clk 0:02:51]} 5. d4 {[%clk 0:02:53]}  cxd4 {[%clk 0:02:52]} 6. cxd4 {[%clk 0:02:52]}  b6 {[%clk 0:02:52]} 7. Nc3 {[%clk 0:02:50]}  Bb7 {[%clk 0:02:51]} 8. Bd3 {[%clk 0:02:49]}  Nxc3 {[%clk 0:02:51]} 9. bxc3 {[%clk 0:02:49]}  Qc7 {[%clk 0:02:51]} 10. Bd2 {[%clk 0:02:49]}  d6 {[%clk 0:02:51]} 11. O-O {[%clk 0:02:46]}  Nd7 {[%clk 0:02:51]} 12. exd6 {[%clk 0:02:42]}  Bxd6 {[%clk 0:02:50]} 13. h3 {[%clk 0:02:42]}  O-O {[%clk 0:02:43]} 14. Ng5 {[%clk 0:02:21]}  Nf6 {[%clk 0:02:25]} 15. Re1 {[%clk 0:02:18]}  h6 {[%clk 0:02:25]} 16. Nf3 {[%clk 0:02:13]}  Bf4 {[%clk 0:02:20]} 17. Ne5 {[%clk 0:02:05]}  Bxd2 {[%clk 0:02:19]} 18. Qxd2 {[%clk 0:02:06]}  Rac8 {[%clk 0:02:16]} 19. Rac1 {[%clk 0:01:59]}  Rfd8 {[%clk 0:02:08]} 20. Bb1 {[%clk 0:01:59]}  b5 {[%clk 0:01:54]} 21. Qd3 {[%clk 0:01:50]}  a6 {[%clk 0:01:52]} 22. Ng4 {[%clk 0:01:49]}  Qf4 {[%clk 0:01:33]} 23. Nxf6+ {[%clk 0:01:42]}  Qxf6 {[%clk 0:01:34]} 24. Qh7+ {[%clk 0:01:36]}  Kf8 {[%clk 0:01:33]} 25. a3 {[%clk 0:01:18]}  Ke7 {[%clk 0:01:29]} 26. Ba2 {[%clk 0:01:00]}  Qg5 {[%clk 0:01:25]} 27. g3 {[%clk 0:00:51]}  Rd5 {[%clk 0:01:02]} 28. h4 {[%clk 0:00:40]}  Qg4 {[%clk 0:00:56]} 29. Re4 {[%clk 0:00:34]}  Qf5 {[%clk 0:00:19]} 30. Qxf5 {[%clk 0:00:33]}  Rxf5 {[%clk 0:00:20]} 31. Re3 {[%clk 0:00:33]}  Bd5 {[%clk 0:00:20]} 32. Bb1 {[%clk 0:00:30]}  Rf3 {[%clk 0:00:18]} 33. Rxf3 {[%clk 0:00:29]}  Bxf3 {[%clk 0:00:19]} 34. Bd3 {[%clk 0:00:29]}  Bd5 {[%clk 0:00:19]} 35. Ra1 {[%clk 0:00:28]}  Bc4 {[%clk 0:00:19]} 36. Be4 {[%clk 0:00:23]}  Bb3 {[%clk 0:00:16]} 37. Rc1 {[%clk 0:00:22]}  Rc7 {[%clk 0:00:16]} 38. Kg2 {[%clk 0:00:21]}  Kd6 {[%clk 0:00:15]} 39. Kf3 {[%clk 0:00:21]}  Bd5 {[%clk 0:00:16]} 40. Ke3 {[%clk 0:00:20]}  Bxe4 {[%clk 0:00:16]} 41. Kxe4 {[%clk 0:00:21]}  Rc4 {[%clk 0:00:16]} 42. f4 {[%clk 0:00:20]}  Ra4 {[%clk 0:00:16]} 43. Ra1 {[%clk 0:00:19]}  a5 {[%clk 0:00:13]} 44. Kd3 {[%clk 0:00:16]}  b4 {[%clk 0:00:12]} 45. cxb4 {[%clk 0:00:16]}  axb4 {[%clk 0:00:13]} 46. Rb1 {[%clk 0:00:13]}  bxa3 {[%clk 0:00:13]} 47. Ra1 {[%clk 0:00:09]}  a2 {[%clk 0:00:13]} 48. Ke4 {[%clk 0:00:08]}  Ra3 {[%clk 0:00:12]} 49. f5 {[%clk 0:00:06]}  exf5+ {[%clk 0:00:12]} 50. Kxf5 {[%clk 0:00:06]}  Kd5 {[%clk 0:00:12]} 51. g4 {[%clk 0:00:04]}  Rf3# {[%clk 0:00:12]} 0-1


[Site "https://www.chess.com"]

[Event "Titled Tuesday Blitz July 25 Early 2023"]
[White "Ai, Evan"]
[Black "Chemin, Justo Reinaldo"]
[WhiteFideId "2094770"]
[BlackFideId "2101580"]
[WhiteElo "2430"]
[BlackElo "2261"]
[Result "0-1"]
[Round "5"]
[TimeControl "180+2"]
[Date "2023.07.25"]
[WhiteClock "0:00:11"]
[BlackClock "0:00:12"]
[Board "189"]

1. e4 {[%clk 0:03:00]}  e6 {[%clk 0:03:00]} 2. d4 {[%clk 0:02:56]}  d5 {[%clk 0:03:01]} 3. Nd2 {[%clk 0:02:56]}  Nf6 {[%clk 0:02:56]} 4. e5 {[%clk 0:02:56]}  Nfd7 {[%clk 0:02:56]} 5. c3 {[%clk 0:02:53]}  c5 {[%clk 0:02:56]} 6. Bd3 {[%clk 0:02:53]}  Nc6 {[%clk 0:02:57]} 7. Ne2 {[%clk 0:02:54]}  cxd4 {[%clk 0:02:57]} 8. cxd4 {[%clk 0:02:55]}  f6 {[%clk 0:02:57]} 9. exf6 {[%clk 0:02:55]}  Nxf6 {[%clk 0:02:57]} 10. O-O {[%clk 0:02:55]}  Bd6 {[%clk 0:02:57]} 11. Nf3 {[%clk 0:02:53]}  O-O {[%clk 0:02:57]} 12. Bf4 {[%clk 0:02:52]}  Bxf4 {[%clk 0:02:46]} 13. Nxf4 {[%clk 0:02:53]}  Qd6 {[%clk 0:02:43]} 14. g3 {[%clk 0:02:45]}  e5 {[%clk 0:02:34]} 15. dxe5 {[%clk 0:02:46]}  Nxe5 {[%clk 0:02:34]} 16. Nxe5 {[%clk 0:02:44]}  Qxe5 {[%clk 0:02:34]} 17. Qd2 {[%clk 0:02:39]}  Ne4 {[%clk 0:01:53]} 18. Bxe4 {[%clk 0:02:21]}  dxe4 {[%clk 0:01:50]} 19. Qd5+ {[%clk 0:02:18]}  Qxd5 {[%clk 0:01:48]} 20. Nxd5 {[%clk 0:02:19]}  Bg4 {[%clk 0:01:42]} 21. Rac1 {[%clk 0:02:11]}  Rad8 {[%clk 0:01:39]} 22. Ne3 {[%clk 0:02:03]}  Bf3 {[%clk 0:01:39]} 23. Rc2 {[%clk 0:01:49]}  Rd7 {[%clk 0:01:36]} 24. Rfc1 {[%clk 0:01:48]}  Rfd8 {[%clk 0:01:35]} 25. Kf1 {[%clk 0:01:32]}  h6 {[%clk 0:01:35]} 26. h4 {[%clk 0:01:31]}  b6 {[%clk 0:01:33]} 27. Ke1 {[%clk 0:01:30]}  Kf7 {[%clk 0:01:21]} 28. Rc7 {[%clk 0:01:28]}  Ke6 {[%clk 0:01:18]} 29. R1c6+ {[%clk 0:01:14]}  Ke7 {[%clk 0:01:13]} 30. Nd5+ {[%clk 0:01:07]}  Ke8 {[%clk 0:01:06]} 31. Rxd7 {[%clk 0:01:03]}  Rxd7 {[%clk 0:01:07]} 32. Rc8+ {[%clk 0:01:01]}  Kf7 {[%clk 0:01:06]} 33. Rc7 {[%clk 0:01:01]}  Ke6 {[%clk 0:00:59]} 34. Rxd7 {[%clk 0:01:00]}  Kxd7 {[%clk 0:00:59]} 35. Kd2 {[%clk 0:01:01]}  Kd6 {[%clk 0:00:59]} 36. Nc3 {[%clk 0:01:00]}  a6 {[%clk 0:00:51]} 37. Ke3 {[%clk 0:01:01]}  Ke5 {[%clk 0:00:51]} 38. a3 {[%clk 0:00:52]}  Bg2 {[%clk 0:00:47]} 39. Ne2 {[%clk 0:00:49]}  Bf3 {[%clk 0:00:45]} 40. Nd4 {[%clk 0:00:38]}  Bg2 {[%clk 0:00:43]} 41. Nc6+ {[%clk 0:00:36]}  Kd5 {[%clk 0:00:40]} 42. Nb4+ {[%clk 0:00:36]}  Kc4 {[%clk 0:00:40]} 43. Nxa6 {[%clk 0:00:34]}  Kb3 {[%clk 0:00:40]} 44. Nb4 {[%clk 0:00:25]}  Kxb2 {[%clk 0:00:40]} 45. Nd5 {[%clk 0:00:25]}  b5 {[%clk 0:00:36]} 46. Nc7 {[%clk 0:00:25]}  Bf1 {[%clk 0:00:36]} 47. Kxe4 {[%clk 0:00:25]}  Kxa3 {[%clk 0:00:36]} 48. Na6 {[%clk 0:00:10]}  Ka4 {[%clk 0:00:20]} 49. Kf5 {[%clk 0:00:09]}  Ka5 {[%clk 0:00:19]} 50. Nc5 {[%clk 0:00:08]}  b4 {[%clk 0:00:20]} 51. Kg6 {[%clk 0:00:08]}  Kb5 {[%clk 0:00:20]} 52. Nb3 {[%clk 0:00:08]}  Bc4 {[%clk 0:00:19]} 53. Nc1 {[%clk 0:00:07]}  Ka4 {[%clk 0:00:14]} 54. Kh7 {[%clk 0:00:07]}  Ka3 {[%clk 0:00:15]} 55. Kxg7 {[%clk 0:00:07]}  Kb2 {[%clk 0:00:15]} 56. Kxh6 {[%clk 0:00:08]}  Kxc1 {[%clk 0:00:16]} 57. g4 {[%clk 0:00:09]}  b3 {[%clk 0:00:16]} 58. g5 {[%clk 0:00:10]}  b2 {[%clk 0:00:17]} 59. g6 {[%clk 0:00:11]}  b1=Q {[%clk 0:00:17]} 60. Kg7 {[%clk 0:00:12]}  Qf5 {[%clk 0:00:14]} 61. h5 {[%clk 0:00:13]}  Qxh5 {[%clk 0:00:14]} 62. Kf6 {[%clk 0:00:12]}  Qf3+ {[%clk 0:00:13]} 63. Kg7 {[%clk 0:00:12]}  Qxf2 {[%clk 0:00:14]} 64. Kh7 {[%clk 0:00:11]}  Bd3 {[%clk 0:00:12]} 0-1


[Site "https://www.chess.com"]

[Event "Titled Tuesday Blitz July 25 Early 2023"]
[White "Bristy Mukherjee"]
[Black "Xavier_mompel"]
[WhiteFideId "25077325"]
[WhiteElo "2418"]
[BlackElo "2257"]
[Result "1/2-1/2"]
[Round "5"]
[TimeControl "180+2"]
[Date "2023.07.25"]
[WhiteClock "0:00:04"]
[BlackClock "0:00:04"]
[Board "191"]

1. c4 {[%clk 0:03:00]}  e5 {[%clk 0:02:59]} 2. Nc3 {[%clk 0:03:00]}  Nf6 {[%clk 0:02:59]} 3. b3 {[%clk 0:03:00]}  c6 {[%clk 0:02:54]} 4. Bb2 {[%clk 0:02:57]}  d5 {[%clk 0:02:54]} 5. cxd5 {[%clk 0:02:57]}  cxd5 {[%clk 0:02:55]} 6. Rc1 {[%clk 0:02:56]}  Nc6 {[%clk 0:02:54]} 7. Nf3 {[%clk 0:02:55]}  e4 {[%clk 0:02:51]} 8. Ng1 {[%clk 0:02:52]}  Be7 {[%clk 0:02:48]} 9. d3 {[%clk 0:02:53]}  exd3 {[%clk 0:02:44]} 10. Qxd3 {[%clk 0:02:53]}  O-O {[%clk 0:02:44]} 11. Nf3 {[%clk 0:02:53]}  d4 {[%clk 0:02:36]} 12. Nb1 {[%clk 0:02:45]}  Bb4+ {[%clk 0:02:25]} 13. Nbd2 {[%clk 0:02:42]}  Qa5 {[%clk 0:02:17]} 14. a3 {[%clk 0:02:37]}  Bxd2+ {[%clk 0:02:01]} 15. Qxd2 {[%clk 0:02:25]}  Qxd2+ {[%clk 0:02:01]} 16. Nxd2 {[%clk 0:02:21]}  Be6 {[%clk 0:02:00]} 17. g3 {[%clk 0:02:21]}  Bd5 {[%clk 0:01:58]} 18. Rg1 {[%clk 0:02:19]}  Rfe8 {[%clk 0:01:57]} 19. Kd1 {[%clk 0:02:16]}  Ne4 {[%clk 0:01:53]} 20. Nxe4 {[%clk 0:02:10]}  Bxb3+ {[%clk 0:01:53]} 21. Kd2 {[%clk 0:02:10]}  Rxe4 {[%clk 0:01:53]} 22. Bg2 {[%clk 0:02:11]}  Re6 {[%clk 0:01:42]} 23. Bxc6 {[%clk 0:02:00]}  bxc6 {[%clk 0:01:43]} 24. Bxd4 {[%clk 0:02:00]}  a5 {[%clk 0:01:25]} 25. Rc3 {[%clk 0:01:57]}  a4 {[%clk 0:01:23]} 26. Rgc1 {[%clk 0:01:58]}  Rc8 {[%clk 0:01:21]} 27. Rc5 {[%clk 0:01:55]}  Rd6 {[%clk 0:01:17]} 28. Kc3 {[%clk 0:01:54]}  Rd5 {[%clk 0:01:15]} 29. e3 {[%clk 0:01:45]}  Rxc5+ {[%clk 0:00:56]} 30. Bxc5 {[%clk 0:01:46]}  f6 {[%clk 0:00:54]} 31. Kb4 {[%clk 0:01:37]}  Rb8+ {[%clk 0:00:53]} 32. Kc3 {[%clk 0:01:37]}  Rd8 {[%clk 0:00:48]} 33. Bd4 {[%clk 0:01:36]}  Kf7 {[%clk 0:00:47]} 34. Kb4 {[%clk 0:01:36]}  Rb8+ {[%clk 0:00:45]} 35. Kc5 {[%clk 0:01:36]}  Ke6 {[%clk 0:00:45]} 36. Rc3 {[%clk 0:01:32]}  Kd7 {[%clk 0:00:31]} 37. Bxf6 {[%clk 0:01:08]}  gxf6 {[%clk 0:00:31]} 38. e4 {[%clk 0:01:06]}  Rb5+ {[%clk 0:00:26]} 39. Kd4 {[%clk 0:01:06]}  Kd6 {[%clk 0:00:24]} 40. f4 {[%clk 0:01:04]}  Ke6 {[%clk 0:00:21]} 41. Rxc6+ {[%clk 0:01:03]}  Ke7 {[%clk 0:00:20]} 42. Rc7+ {[%clk 0:01:03]}  Kd6 {[%clk 0:00:16]} 43. Rxh7 {[%clk 0:01:01]}  Be6 {[%clk 0:00:15]} 44. Rh6 {[%clk 0:00:59]}  Ke7 {[%clk 0:00:12]} 45. Rh7+ {[%clk 0:00:55]}  Bf7 {[%clk 0:00:12]} 46. g4 {[%clk 0:00:40]}  Rb3 {[%clk 0:00:11]} 47. g5 {[%clk 0:00:40]}  fxg5 {[%clk 0:00:09]} 48. fxg5 {[%clk 0:00:41]}  Kf8 {[%clk 0:00:05]} 49. Rh6 {[%clk 0:00:37]}  Rxa3 {[%clk 0:00:04]} 50. Ra6 {[%clk 0:00:38]}  Ra1 {[%clk 0:00:03]} 51. g6 {[%clk 0:00:32]}  Bg8 {[%clk 0:00:03]} 52. h4 {[%clk 0:00:32]}  a3 {[%clk 0:00:02]} 53. h5 {[%clk 0:00:20]}  a2 {[%clk 0:00:02]} 54. h6 {[%clk 0:00:20]}  Rd1+ {[%clk 0:00:02]} 55. Ke5 {[%clk 0:00:17]}  a1=Q+ {[%clk 0:00:03]} 56. Rxa1 {[%clk 0:00:16]}  Rxa1 {[%clk 0:00:04]} 57. Kf6 {[%clk 0:00:13]}  Ra6+ {[%clk 0:00:03]} 58. Kg5 {[%clk 0:00:13]}  Re6 {[%clk 0:00:03]} 59. Kf5 {[%clk 0:00:13]}  Ra6 {[%clk 0:00:02]} 60. e5 {[%clk 0:00:13]}  Ra4 {[%clk 0:00:02]} 61. Kf6 {[%clk 0:00:13]}  Ra6+ {[%clk 0:00:01]} 62. Kf5 {[%clk 0:00:13]}  Be6+ {[%clk 0:00:02]} 63. Kg5 {[%clk 0:00:12]}  Kg8 {[%clk 0:00:02]} 64. h7+ {[%clk 0:00:09]}  Kg7 {[%clk 0:00:02]} 65. Kh5 {[%clk 0:00:09]}  Bf5 {[%clk 0:00:02]} 66. h8=Q+ {[%clk 0:00:02]}  Kxh8 {[%clk 0:00:02]} 67. Kg5 {[%clk 0:00:02]}  Bxg6 {[%clk 0:00:02]} 68. Kh4 {[%clk 0:00:03]}  Kg7 {[%clk 0:00:02]} 69. Kg5 {[%clk 0:00:03]}  Re6 {[%clk 0:00:03]} 70. Kf4 {[%clk 0:00:04]}  Kf7 {[%clk 0:00:03]} 71. Kg5 {[%clk 0:00:04]}  Rxe5+ {[%clk 0:00:04]} 72. Kh6 {[%clk 0:00:04]}  Ra5 {[%clk 0:00:04]} 1/2-1/2


[Site "https://www.chess.com"]